Cogmind - Beta 10.2 --- EXPLORER MODE // 2021.08.18 @ 16:42:29 Player: thingamajigger Result: Self-destructed Performance ------------- Evolutions (8) 4000 Regions Visited (29) 5800 Robots Destroyed (236) 1180 Value Destroyed (11334) 11334 Prototype IDs (62) 1240 Alien Tech Used (2) 400 Bonus (4356) 4356 TOTAL SCORE: 28310 Bonus ------- High Alert Combat Kills 775 Follower Combat Kills 1293 Entered Garrisons 400 Used RIF Installer 1000 Met Data Miner 300 Met Zhirov 300 Built Enhanced Grunts 300 A7 Reached Mainframe 300 Met R17 at Cetus 500 Friendly Fire -812 Cogmind --------- Core Integrity 1367/1450 Matter 123/300 Energy 985/985 System Corruption 1% Temperature Cool (0) Movement Hovering (115) Ox1 Location -2/Research Parts ------- > --- POWER (2) -------- Cooled Fission Core Compact Particle Reactor > --- PROPULSION (6) --- Combat Gravmag System Improved Gyrokinetic Inverter Improved Gyrokinetic Inverter > --- UTILITY (13) ----- Power Amplifier Experimental Power Amplifier Medium Storage Unit Improved Energy Well Advanced Weight Redist. System Experimental Optical Array Improved Targeting Computer Improved Melee Analysis Suite Advanced Target Analyzer Quantum Capacitor Light Regenerative Plating Advanced Hacking Suite > --- WEAPON (3) ------- Perforator > --- INVENTORY (8) ---- Relay Coupler [NC] (61) Relay Coupler [Duelist] (65) Advanced Variable Charge Gun Micro-nuke Launcher Advanced Remote Datajack Peak State ------------ > --- POWER ------------ Cooled Fission Core Compact Particle Reactor > --- PROPULSION ------- Cooled Gravmag System Improved Antigrav System Improved Antigrav System Improved Gyrokinetic Inverter Improved Gyrokinetic Inverter Improved Linear Gravjet > --- UTILITY ---------- Power Amplifier Experimental Power Amplifier Medium Storage Unit Improved Energy Well Advanced Weight Redist. System Experimental Optical Array Improved Melee Analysis Suite Advanced Target Analyzer Quantum Capacitor Improved Overload Regulator Light Regenerative Plating Advanced Hacking Suite > --- WEAPON ----------- Perforator Power Maul > --- INVENTORY -------- Combat Gravmag System Relay Coupler [NC] Relay Coupler [Duelist] Tachyon Dispersion Ray Advanced Variable Charge Gun Micro-nuke Launcher Advanced Remote Datajack [Rating: 169] Favorites ----------- Power Micro Fission Core Engine Cooled Deuterium Engine Power Core Micro Fission Core Reactor Light Antimatter Reactor Propulsion Improved Treads Treads Improved Treads Hover Unit Antigrav System Utility High-capacity Storage Unit Device Long-range Sensor Array Storage High-capacity Storage Unit Processor Experimental Signal Interpreter Hackware Experimental System Shield Protection Layered Light Armor Plating Weapon Barrage Gun Energy Gun Quantum Rifle Energy Cannon Heavy Disruptor Cannon Ballistic Gun Barrage Gun Ballistic Cannon Perforator Launcher Proton Missile Launcher Special Weapon Improved Remote Datajack Impact Weapon Powered Hammer Build | -11 -10 -9 -9 -9 -7 -7 -7 -7 -6 -6 -6 -6 -6 -6 -6 -5 -5 -5 -5 -5 -4 -4 -4 -4 -4 -4 -3 -3 -2 ------- Run | Scr Mat Mat Sto Rec Fac Low Low Zio Pro Fac Gar Fac Low Low Dat Pro Fac Upp Upp Zhi Pro Fac Gar Fac Ext Cet Res Tes Res Slots Evolved 17 | . 1 2 . . 4 . . . . 2 . . . . . . 2 . . . . 2 . . . . 2 . 2 Power 1 | . . . . . . . . . . . . . . . . . . . . . . 1 . . . . . . . Propulsion 4 | . . . . . 1 . . . . . . . . . . . 1 . . . . 1 . . . . 1 . . Utility 11 | . 1 2 . . 2 . . . . 2 . . . . . . 1 . . . . . . . . . 1 . 2 Weapon 1 | . . . . . 1 . . . . . . . . . . . . . . . . . . . . . . . . Parts Attached 283 | 7 11 9 5 . 24 3 11 9 3 2 . 11 2 9 . 6 46 1 7 3 4 6 21 14 9 5 18 23 14 Power 25 | 1 1 1 . . 5 . . . 1 . . . . . . . 2 . . . 1 1 . 1 3 . 2 4 2 Engine 10 | 1 1 1 . . 5 . . . 1 . . . . . . . 1 . . . . . . . . . . . . Core 7 | . . . . . . . . . . . . . . . . . 1 . . . 1 1 . 1 . . . 2 1 Reactor 8 | . . . . . . . . . . . . . . . . . . . . . . . . . 3 . 2 2 1 Propulsion 63 | 2 5 . 2 . 5 . . 3 1 . . 1 . 1 . 1 11 . 4 2 1 3 3 2 1 . 5 6 4 Treads 23 | 2 5 . 2 . 5 . . 3 1 . . 1 . 1 . 1 2 . . . . . . . . . . . . Leg . | . . . . . . . . . . . . . . . . . . . . . . . . . . . . . . Wheel . | . . . . . . . . . . . . . . . . . . . . . . . . . . . . . . Hover 40 | . . . . . . . . . . . . . . . . . 9 . 4 2 1 3 3 2 1 . 5 6 4 Flight . | . . . . . . . . . . . . . . . . . . . . . . . . . . . . . . Utility 112 | 2 5 3 . . 9 2 4 6 . 2 . 4 . 8 . 3 18 1 2 1 2 2 8 8 1 1 7 10 3 Device 41 | . . 1 . . 1 . 2 . . . . 1 . 2 . 1 6 . 2 . 1 1 4 5 1 1 5 6 1 Storage 19 | 1 4 . . . . . 1 . . . . . . . . 2 6 1 . . . . . 1 . . . 2 1 Processor 23 | . 1 1 . . 5 . . 5 . 1 . 1 . . . . 2 . . . . . 2 1 . . 2 1 1 Hackware 6 | . . . . . . . . 1 . . . . . 1 . . 1 . . . . . 2 1 . . . . . Protection 23 | 1 . 1 . . 3 2 1 . . 1 . 2 . 5 . . 3 . . 1 1 1 . . . . . 1 . Artifact . | . . . . . . . . . . . . . . . . . . . . . . . . . . . . . . Weapon 83 | 2 . 5 3 . 5 1 7 . 1 . . 6 2 . . 2 15 . 1 . . . 10 3 4 4 4 3 5 Energy Gun 23 | 2 . 3 1 . . . . . . . . . . . . . 2 . . . . . 7 1 1 3 . 2 1 Energy Cannon 3 | . . 1 . . . . . . . . . . . . . . . . . . . . . 1 1 . . . . Ballistic Gun 31 | . . 1 2 . 4 . 6 . 1 . . 6 1 . . 2 6 . . . . . 2 . . . . . . Ballistic Cannon 2 | . . . . . . . . . . . . . . . . . . . . . . . . . . . . . 2 Launcher 13 | . . . . . 1 1 1 . . . . . 1 . . . 6 . . . . . 1 . 1 1 . . . Special Weapon 3 | . . . . . . . . . . . . . . . . . . . . . . . . . 1 . 1 . 1 Impact Weapon 8 | . . . . . . . . . . . . . . . . . 1 . 1 . . . . 1 . . 3 1 1 Slashing Weapon . | . . . . . . . . . . . . . . . . . . . . . . . . . . . . . . Piercing Weapon . | . . . . . . . . . . . . . . . . . . . . . . . . . . . . . . Special Melee Weapon . | . . . . . . . . . . . . . . . . . . . . . . . . . . . . . . Unidentified Prototypes 25 | . . 2 2 . 3 . . 6 . 1 . . . . . 1 . . . 3 . . . . . 1 1 3 2 Parts Lost 56 | . . . . . 8 . 1 . . . . 3 . 1 . . 1 . 6 . 2 1 10 1 . 1 7 8 6 Power 6 | . . . . . 1 . . . . . . . . . . . . . . . 1 . . . . . 1 3 . Propulsion 17 | . . . . . 3 . . . . . . . . . . . 1 . 3 . . 1 2 . . . 1 2 4 Utility 13 | . . . . . 1 . 1 . . . . 1 . 1 . . . . 1 . 1 . 3 . . . 2 2 . Weapon 20 | . . . . . 3 . . . . . . 2 . . . . . . 2 . . . 5 1 . 1 3 1 2 Highest Loss Streak 6 | . . . . . 2 . 1 . . . . 1 . 1 . . 1 . 3 . 1 1 4 1 . 1 4 3 6 Average Slot Usage (%) 97 | . 99 93 100 100 99 100 99 99 100 100 100 99 99 99 100 100 99 100 94 91 87 91 95 97 95 92 91 79 84 Engine 4 | . 11 10 10 10 6 7 7 7 7 6 6 6 6 6 6 6 3 . . . . . . . . . . . . Core 1 | . . . . . . . . . . . . . . . . . 1 5 5 5 5 10 10 10 1 . . 1 4 Treads 12 | . 24 20 20 20 20 21 21 21 21 18 18 18 18 18 18 18 7 . . . . . . . . . . . . Hover 8 | . . . . . . . . . . . . . . . . . 14 22 21 22 22 25 23 25 25 25 23 21 21 Device 9 | . . 1 10 10 7 7 6 . . . . 4 6 6 6 6 14 16 15 11 9 8 9 12 15 20 21 15 16 Storage 18 | . 27 30 30 30 21 21 21 21 21 18 18 18 18 18 18 20 16 16 16 16 16 15 15 15 15 15 10 8 8 Processor 14 | . . 8 . . 14 14 14 20 21 25 25 19 18 13 12 12 17 16 16 16 11 10 17 13 14 10 11 14 13 Hackware 2 | . . . . . . . . 6 7 6 6 6 6 5 . . 1 5 5 5 5 5 . 4 5 5 4 4 4 Protection 5 | . 8 4 10 10 6 7 6 . . 6 6 5 6 10 18 15 4 . . 3 5 8 5 3 . . . . 4 Energy Gun 2 | . 25 13 3 . . . . . . . . . . . . . 3 5 . . . . 9 8 . 2 . 1 1 Ballistic Gun 9 | . . . 13 20 20 16 14 14 16 18 18 17 15 12 12 12 6 . . . . . . . . . . . . Launcher 2 | . . . . . . 4 6 7 4 . . . 2 6 6 6 3 5 . . . . 1 . 2 2 . . . Impact Weapon 2 | . . . . . . . . . . . . . . . . . 1 5 10 11 11 10 3 1 2 . 7 6 2 Naked Turns . | . . . . . . . . . . . . . . . . . . . . . . . . . . . . . . Heaviest Build 142 | 15 102 118 119 119 140 140 142 142 121 125 125 127 133 140 140 141 141 63 63 52 52 59 82 70 83 83 77 64 79 Greatest Support 132 | 40 40 40 46 46 69 69 69 69 69 69 69 69 69 69 69 74 104 73 73 73 73 59 92 83 84 84 89 132 98 Greatest Overweight (x) 44 | . 2 2 2 2 2 2 2 2 1 1 1 1 1 44 2 2 1 1 17 . . 1 5 . 1 1 . 1 1 Average Overweight (x) . | . . 2 2 2 1 1 1 1 1 1 1 1 1 1 2 1 . . 6 . . . . . . . . . . Largest Inventory Capacity 28 | 8 28 28 28 28 28 28 28 28 28 28 28 28 28 28 28 28 28 16 16 16 16 16 16 20 14 14 14 14 8 Average Capacity 22 | 7 16 28 28 28 28 28 28 28 28 28 28 28 28 28 28 28 17 14 16 16 16 16 16 14 14 14 14 11 8 Most Carried 28 | 3 18 23 28 27 27 27 28 28 28 27 25 28 28 28 27 28 28 14 14 15 16 14 16 16 14 14 14 14 8 Average Carried 20 | 1 8 20 23 26 23 26 26 27 27 25 25 25 27 26 27 26 16 12 12 13 15 11 12 14 13 13 13 10 6 Final Capacity 28 | 8 28 28 28 28 28 28 28 28 28 28 28 28 28 28 28 28 14 16 16 16 16 16 16 14 14 14 14 8 8 Final Carried 28 | 3 18 23 26 27 27 26 28 28 28 25 25 28 28 27 27 27 12 14 10 15 15 10 16 14 14 14 14 8 5 Class Distribution -------------------- 27% | Hacker-Mutant 19% | Hauler-Mutant 11% | Hauler-Skirmisher 9% | Hacker-Gunner 6% | Scavenger-Mutant 6% | Hacker-Skirmisher 5% | Hacker-Assassin 3% | Bothacker-Mutant 3% | Hauler-Gunner Dominant Class ---------------- Hacker-Mutant | -10/Materials Hauler-Mutant | -9/Materials Hauler-Mutant | -9/Storage Hauler-Mutant | -9/Recycling Hauler-Skirmisher | -7/Factory Hauler-Mutant | -7/Lower Caves Hauler-Mutant | -7/Lower Caves Hacker-Gunner | -7/Zion Hacker-Gunner | -6/Proximity Caves Hacker-Gunner | -6/Factory Hacker-Gunner | -6/Garrison Hacker-Skirmisher | -6/Factory Hacker-Skirmisher | -6/Lower Caves Hacker-Mutant | -6/Lower Caves Hauler-Mutant | -6/Data Miner Hauler-Mutant | -5/Proximity Caves Scavenger-Mutant | -5/Factory Hacker-Scout | -5/Upper Caves Hacker-Assassin | -5/Upper Caves Hacker-Mutant | -5/Zhirov Hacker-Mutant | -4/Proximity Caves Hacker-Mutant | -4/Factory Scavenger-Mutant | -4/Garrison Hacker-Mutant | -4/Factory Bothacker-Mutant | -4/Extension Hacker-Mutant | -4/Cetus Hacker-Mutant | -3/Research Hacker-Mutant | -3/Testing Hacker-Mutant | -2/Research Resources | -11 -10 -9 -9 -9 -7 -7 -7 -7 -6 -6 -6 -6 -6 -6 -6 -5 -5 -5 -5 -5 -4 -4 -4 -4 -4 -4 -3 -3 -2 ----------- Run | Scr Mat Mat Sto Rec Fac Low Low Zio Pro Fac Gar Fac Low Low Dat Pro Fac Upp Upp Zhi Pro Fac Gar Fac Ext Cet Res Tes Res Matter Collected 7653 | 79 284 147 207 51 1447 274 100 25 368 20 153 675 423 255 . 227 706 172 75 365 30 . 464 120 216 153 178 47 392 Remotely . | . . . . . . . . . . . . . . . . . . . . . . . . . . . . . . Salvage Created 12824 | . 280 198 357 . 2163 308 157 . 59 . 293 1030 215 591 . 753 1157 223 206 285 158 . 1416 386 1279 632 220 178 280 Parts 568 | . 23 10 17 . 126 13 7 . 5 . 11 57 5 19 . 23 60 11 3 1 5 . 63 13 36 31 5 13 11 Haulers Intercepted 7 | . 1 . 3 . 3 . . . . . . . . . . . . . . . . . . . . . . . . Recyclers Shooed 3 | . 1 . . . . . . . . . . . . . . . . . . . . . . . 2 . . . . Parts Field Recycled . | . . . . . . . . . . . . . . . . . . . . . . . . . . . . . . Retrieved Matter . | . . . . . . . . . . . . . . . . . . . . . . . . . . . . . . Parts Self-Destructed . | . . . . . . . . . . . . . . . . . . . . . . . . . . . . . . Prevented . | . . . . . . . . . . . . . . . . . . . . . . . . . . . . . . Kills | -11 -10 -9 -9 -9 -7 -7 -7 -7 -6 -6 -6 -6 -6 -6 -6 -5 -5 -5 -5 -5 -4 -4 -4 -4 -4 -4 -3 -3 -2 ------- Run | Scr Mat Mat Sto Rec Fac Low Low Zio Pro Fac Gar Fac Low Low Dat Pro Fac Upp Upp Zhi Pro Fac Gar Fac Ext Cet Res Tes Res Combat Hostiles Destroyed 195 | . 8 4 5 . 37 7 4 . 1 . 5 18 3 11 . 10 21 3 3 . 2 . 19 3 12 8 3 2 6 Melee 9 | . . . . . . . . . . . . . . . . . . . 2 . 2 . 3 1 . . 1 . . Guns 98 | . 8 2 2 . 37 1 . . 1 . 5 18 . . . 1 10 . . . . . 9 . . 1 . 2 1 Cannons 11 | . . 2 3 . . . . . . . . . . . . . . . . . . . . . 1 . . . 5 AOE 46 | . . . . . . 5 4 . . . . . 2 6 . 7 11 2 1 . . . 1 . 6 . 1 . . Classes Destroyed 18 | . 4 1 . . 8 . . . 1 . . 1 . . . 1 . . . . 1 . . . 1 . . . . Worker 5 | . . . . . 2 . . . . . . 1 . . . . 1 . . . . . . . . . 1 . . Builder 1 | . . . . . . . . . . . . 1 . . . . . . . . . . . . . . . . . Tunneler 1 | . . . . . 1 . . . . . . . . . . . . . . . . . . . . . . . . Hauler 7 | . 1 . 3 . 3 . . . . . . . . . . . . . . . . . . . . . . . . Recycler 3 | . . . . . 1 . . . . . . . . . . . . . . . . . . 1 1 . . . . Mechanic 1 | . . . . . . . . . . . . . . . . 1 . . . . . . . . . . . . . Operator 1 | . . . . . . . . . . . . . . . . . . . . . . . . . 1 . . . . Watcher 19 | . 3 . . . 2 . . . . . . 2 . . . . 5 . . . . . 1 1 2 1 1 1 . Swarmer 43 | . 6 . . . 2 4 . . . . . 4 . 4 . 1 9 . . . . . 3 . 3 . 2 . 5 Grunt 63 | . 2 2 4 . 18 2 . . . . 1 8 2 4 . 5 5 1 . . . . 4 . 5 . . . . Brawler 5 | . . . . . 1 . . . . . 2 . . . . 1 . . . . . . 1 . . . . . . Duelist 13 | . . . . . 2 1 . . . . . 2 . 2 . 2 1 . . . . . 1 . 2 . . . . Protector 2 | . . . . . 2 . . . . . . . . . . . . . . . . . . . . . . . . Sentry 27 | . . 2 1 . 6 . . . . . 1 2 1 1 . 1 1 1 . . . . 5 1 2 . 1 . 1 Hunter 5 | . . . . . 1 . . . . . . 1 . . . 1 . 1 1 . . . . . . . . . . Programmer 25 | . . . . . 5 . . . . . 1 1 . . . . 5 . 2 . 2 . 4 2 . 1 . 2 . Behemoth 2 | . . . . . . . . . 1 . . . . . . . . . . . . . 1 . . . . . . Cetus Guard 7 | . . . . . . . . . . . . . . . . . . . . . . . . . . 7 . . . Decomposer 1 | . . . . . . . . . . . . . . . . . . . 1 . . . . . . . . . . Samaritan 1 | . . . . . . . . . . . . . . . . . . . . . 1 . . . . . . . . Wasp 3 | . . . . . . . 3 . . . . . . . . . . . . . . . . . . . . . . Thug 2 | . . . . . . . 1 . . . . . . . . . . . . . . . . . 1 . . . . Guerrilla 1 | . . . . . . . . . . . . . . . . . . . . . . . . . 1 . . . . Best Kill Streak 7 | . 2 2 2 . 7 3 4 . 1 . 3 4 1 2 . 4 6 1 3 . 2 . 4 2 7 5 1 2 5 Combat Bots Only 6 | . 2 2 2 . 6 3 4 . 1 . 3 4 1 2 . 4 6 1 2 . 2 . 4 1 6 4 1 2 5 Max Kills in Single Turn 4 | . 2 1 1 . 2 1 3 . 1 . 1 2 1 2 . 2 2 1 1 . 1 . 1 1 4 1 1 1 1 Gunslinging 1 | . 1 . . . 1 . . . . . . . . . . . . . . . . . . . . . . . . Exploded 3 | . . . . . . 1 3 . . . . . 1 2 . 2 2 1 1 . . . 1 . 3 . 1 . . Melee 1 | . . . . . . . . . . . . . . . . . . . 1 . 1 . 1 1 . . 1 . . Uniques/NPCs Destroyed . | . . . . . . . . . . . . . . . . . . . . . . . . . . . . . . Combat | -11 -10 -9 -9 -9 -7 -7 -7 -7 -6 -6 -6 -6 -6 -6 -6 -5 -5 -5 -5 -5 -4 -4 -4 -4 -4 -4 -3 -3 -2 -------- Run | Scr Mat Mat Sto Rec Fac Low Low Zio Pro Fac Gar Fac Low Low Dat Pro Fac Upp Upp Zhi Pro Fac Gar Fac Ext Cet Res Tes Res Damage Taken 12478 | . 158 103 231 . 2130 92 81 . 157 . 305 822 24 185 . 186 735 89 771 . 298 30 1904 288 381 126 761 1618 1003 Core 1707 | . 32 26 19 . 250 18 13 . 22 . 48 69 . 24 . . 41 . 115 . 40 . 321 64 27 26 116 353 83 Absorbed by Shields 148 | . . . . . . . . . . . . . . . . . . . . . . . 8 . 25 115 . . . Core Remaining (%) 76 | 100 87 . . 88 . . . . 56 . . . . . . 83 . . . . 80 . . . . 61 . 57 . Volleys Fired 598 | . 29 11 14 . 119 21 5 . 9 . 19 57 9 34 . 31 62 14 11 . . . 65 5 40 19 4 5 15 Largest 3 | . 2 2 2 . 3 2 1 . 3 . 3 3 1 1 . 2 3 1 1 . . . 3 2 2 2 1 1 1 Hottest 227 | . 90 133 133 . 66 39 39 . 71 . 71 84 36 36 . 63 129 39 94 . . . 227 130 146 198 46 144 100 Shots Fired 1176 | . 58 22 28 . 357 25 5 . 21 . 57 171 9 34 . 34 101 14 11 . . . 126 10 49 20 4 5 15 Gun 961 | . 58 18 20 . 357 6 . . 18 . 57 171 . . . 6 85 . 7 . . . 120 9 9 7 . 5 8 Cannon 52 | . . 4 8 . . . . . . . . . . . . . . . . . . . . 1 30 2 . . 7 Launcher 163 | . . . . . . 19 5 . 3 . . . 9 34 . 28 16 14 4 . . . 6 . 10 11 4 . . Special . | . . . . . . . . . . . . . . . . . . . . . . . . . . . . . . Kinetic 704 | . . . 12 . 357 6 . . 18 . 57 171 . . . 6 56 . . . . . 14 . . . . . 7 Thermal 167 | . 58 22 16 . . . . . . . . . . . . . 29 . 7 . . . 24 . . 7 . 4 . Explosive . | . . . . . . . . . . . . . . . . . . . . . . . . . . . . . . Electromagnetic 305 | . . . . . . 19 5 . 3 . . . 9 34 . 28 16 14 4 . . . 88 10 49 13 4 1 8 Robot Hit Streak 57 | . 12 19 17 . 57 20 9 . 16 . 52 39 32 7 . 21 27 . 6 . . . 52 20 41 11 . 6 17 Robot Miss Streak 5 | . 1 1 1 . 1 1 . . 1 . 1 2 1 2 . 1 1 1 1 . . . 1 1 1 1 . . 5 Penetration Max 1 | . . . . . . . . . . . . . . . . 1 1 . . . . . 1 . . . . . 1 Secondary Targets 17 | . 3 1 . . 9 . . . . . 1 1 . . . . 2 . . . . . . . . . . . . Max Gunslinging Chain 1 | . 1 1 . . 1 . . . . . 1 1 . . . . 1 . . . . . . . . . . . . Capacitor 13 | . . . . . . . . . . . . . . . . . . . . . . . . . . . . 5 8 Shots Hit Robots 1081 | . 43 20 21 . 310 13 2 . 17 . 47 141 2 8 . 25 80 . 39 6 16 . 125 33 48 11 34 25 15 Core Hits 511 | . 17 8 10 . 113 13 7 . 6 . 18 65 8 18 . 37 52 5 7 3 4 . 43 6 34 11 8 3 15 Critical Hits 34 | . . . 1 . 5 . . . . . 1 . . . . 2 9 . . . . . 3 . . 1 . . 12 Critical Kills 13 | . . . . . 3 . . . . . . . . . . 2 2 . . . . . . . . 1 . . 5 Critical Parts Destroyed 19 | . . . 1 . 2 . . . . . 1 . . . . . 7 . . . . . 1 . . . . . 7 Melee Attacks 215 | . . . . . . . . . . . . . . . . . 6 . 32 7 16 3 40 25 3 . 39 38 6 Impact 215 | . . . . . . . . . . . . . . . . . 6 . 32 7 16 3 40 25 3 . 39 38 6 Slashing . | . . . . . . . . . . . . . . . . . . . . . . . . . . . . . . Piercing . | . . . . . . . . . . . . . . . . . . . . . . . . . . . . . . Sneak Attacks 6 | . . . . . . . . . . . . . . . . . . . 1 . 1 . . 2 1 . 1 . . Combat Hostiles . | . . . . . . . . . . . . . . . . . . . . . . . . . . . . . . Follow-up Attacks 15 | . . . . . . . . . . . . . . . . . . . 4 . 5 . 3 . . . 2 1 . Damage Inflicted 29316 | . 473 287 391 12 5628 604 308 . 398 . 844 2557 249 883 . 1413 2205 305 1300 478 509 . 3309 1084 2430 1414 995 1050 190 Guns 14583 | . 473 204 249 . 5556 72 . . 312 . 844 2557 . . . 59 1482 . 213 . . . 1737 152 126 162 . 288 97 Cannons 1183 | . . 83 142 . . . . . . . . . . . . . . . . . . . . 7 848 36 . . 67 Explosions 7896 | . . . . . 72 532 308 . 86 . . . 249 883 . 1354 723 305 116 . . . 526 86 1319 1216 121 . . Melee 5642 | . . . . . . . . . . . . . . . . . . . 971 478 509 . 1046 839 137 . 874 762 26 Ramming 12 | . . . . 12 . . . . . . . . . . . . . . . . . . . . . . . . . Kinetic 10714 | . . . 132 . 5556 72 . . 312 . 844 2557 . . . 59 715 . . . . . 400 . . . . . 67 Thermal 4372 | . 473 287 259 . . 35 70 . . . . . . . . 227 928 . 213 . . . 481 86 439 589 . 285 . Explosive . | . . . . . . . . . . . . . . . . . . . . . . . . . . . . . . Electromagnetic 8576 | . . . . . 72 497 238 . 86 . . . 249 883 . 1127 562 305 116 . . . 1382 159 1854 825 121 3 97 Impact 5642 | . . . . . . . . . . . . . . . . . . . 971 478 509 . 1046 839 137 . 874 762 26 Slashing . | . . . . . . . . . . . . . . . . . . . . . . . . . . . . . . Piercing . | . . . . . . . . . . . . . . . . . . . . . . . . . . . . . . Highest Corruption 15 | . 1 2 2 2 5 5 5 10 . . 1 1 1 1 . 1 1 1 4 . 4 . 5 7 10 10 5 15 1 Average Corruption 3 | . 1 2 2 2 2 5 5 7 . . 1 1 1 1 . 1 1 1 2 . 3 . 4 5 8 10 5 10 1 Corruption Purged 10 | . . . . . . . . . . . . . . 1 . . . . 4 . . . 5 . . . . . . Effects 296 | . 4 2 8 2 40 27 26 10 . . . 2 3 . . 1 3 2 13 . 2 . 40 19 28 17 9 37 1 Message Errors 71 | . 1 . 3 2 10 10 6 3 . . . 1 1 . . . 2 . 2 . . . 7 4 5 4 3 7 . Matter Fused 57 | . . . . . 6 6 14 5 . . . . . . . . . . 5 . . . 8 . 7 2 1 3 . Heat Flow Errors 33 | . . . 3 . 3 4 1 . . . . . . . . . . . 3 . . . 7 3 5 . . 4 . Energy Discharges 27 | . 1 . . . 5 1 . 1 . . . . 1 . . . . . 2 . . . 4 2 3 3 2 2 . Parts Rejected 4 | . . . . . . . . . . . . . . . . . . . . . . . 1 . . 1 . 2 . Data Loss (minor) 40 | . 1 . 1 . 5 2 4 . . . . . 1 . . 1 . 2 . . 1 . 4 2 3 2 2 8 1 Data Loss (major) 8 | . . . . . . 1 1 . . . . . . . . . . . . . . . 1 1 . . . 4 . Misfires 7 | . . . . . 1 2 . . . . . . . . . . . . . . . . 2 1 1 . . . . Misdirections 10 | . . . . . . . . 1 . . . . . . . . . . . . . . . . 1 3 . 5 . Targeting Errors 36 | . 1 2 1 . 9 1 . . . . . 1 . . . . 1 . 1 . 1 . 6 5 2 2 1 2 . Weapon Failures 3 | . . . . . 1 . . . . . . . . . . . . . . . . . . 1 1 . . . . Overload Shots 4 | . . . . . . . . . . . . . . . . . . . . . . . . . . . . 4 . Overflow Damage 971 | . . . . . . . . . . . . . 2 . . 40 13 . 134 110 52 . 92 130 147 2 107 142 . Projectiles 14 | . . . . . . . . . . . . . . . . . . . . . . . . . 14 . . . . Explosions 158 | . . . . . . . . . . . . . 2 . . 40 13 . 22 . . . 23 . 56 2 . . . Melee 799 | . . . . . . . . . . . . . . . . . . . 112 110 52 . 69 130 77 . 107 142 . Knockbacks 36 | . . . . . . . . . . . . . . . . . . . 7 . . . 4 8 3 . 1 9 4 Impact 31 | . . . . . . . . . . . . . . . . . . . 7 . . . 4 8 3 . 1 8 . Kinetic 4 | . . . . . . . . . . . . . . . . . . . . . . . . . . . . . 4 Secondary 1 | . . . . . . . . . . . . . . . . . . . . . . . . . . . . 1 . Self-Inflicted Damage 130 | . . . . . 11 . . . . . . . . . . 26 13 15 . . . . 42 . 23 . . . . Shots 11 | . . . . . 1 . . . . . . . . . . 3 1 1 . . . . 3 . 2 . . . . Rammed 1 | . . . . 1 . . . . . . . . . . . . . . . . . . . . . . . . . Targets Rammed 1 | . . . . 1 . . . . . . . . . . . . . . . . . . . . . . . . . Kicked . | . . . . . . . . . . . . . . . . . . . . . . . . . . . . . . Crushed . | . . . . . . . . . . . . . . . . . . . . . . . . . . . . . . Highest Temperature 419 | . 252 234 270 . 204 272 93 . 28 . 168 238 . 42 . 39 226 3 310 . . . 419 174 255 90 . 219 360 Average Temperature 75 | . 71 103 105 . 25 98 46 . 11 . 55 67 . 12 . 13 130 3 118 . . . 105 63 89 41 . 83 109 Received Heat Transfer 2993 | . 72 54 84 . 894 18 36 . 57 . 207 390 9 45 . 45 216 . 111 . 9 9 336 . 79 4 171 138 9 Effects 7 | . 2 . . . . . . . . . . . . . . . . . . . . . 2 . 3 . . . . Shutdowns 1 | . . . . . . . . . . . . . . . . . . . . . . . 1 . . . . . . Energy Bleed 1 | . 1 . . . . . . . . . . . . . . . . . . . . . . . . . . . . Interference 4 | . 1 . . . . . . . . . . . . . . . . . . . . . . . 3 . . . . Matter Decay 1 | . . . . . . . . . . . . . . . . . . . . . . . 1 . . . . . . Siege Activations . | . . . . . . . . . . . . . . . . . . . . . . . . . . . . . . Robots Corrupted 31 | . . . . . . 1 . . . . . . 1 5 . 2 1 1 . . . . 6 1 6 7 . . . Combat Hostiles 29 | . . . . . . 1 . . . . . . 1 5 . 2 . 1 . . . . 6 1 5 7 . . . Parts Fried 86 | . . . . . . 3 5 . . . . . 2 8 . 3 3 3 2 . 2 . 14 5 21 7 6 . 2 Impact Corruptions 52 | . . . . . . . . . . . . . . . . . . . 10 5 4 . 6 9 3 . 7 8 . Robots Melted . | . . . . . . . . . . . . . . . . . . . . . . . . . . . . . . Combat Hostiles . | . . . . . . . . . . . . . . . . . . . . . . . . . . . . . . Parts Melted 14 | . 3 2 3 . . . . . . . . . . . . . 3 . . . . . 1 . 1 . . 1 . Heat Transferred 5884 | . 1264 680 518 . . . 50 . . . . . . . . 250 1025 . 222 . . . 740 50 400 485 . 200 . Parts Sabotaged . | . . . . . . . . . . . . . . . . . . . . . . . . . . . . . . Parts Stolen . | . . . . . . . . . . . . . . . . . . . . . . . . . . . . . . Parts Stripped . | . . . . . . . . . . . . . . . . . . . . . . . . . . . . . . Power Chain Reactions 19 | . . . . . . 1 1 . . . . . 1 1 . 3 4 . . . . . . 1 5 2 . . . Missiles Intercepted . | . . . . . . . . . . . . . . . . . . . . . . . . . . . . . . Alert | -11 -10 -9 -9 -9 -7 -7 -7 -7 -6 -6 -6 -6 -6 -6 -6 -5 -5 -5 -5 -5 -4 -4 -4 -4 -4 -4 -3 -3 -2 ------- Run | Scr Mat Mat Sto Rec Fac Low Low Zio Pro Fac Gar Fac Low Low Dat Pro Fac Upp Upp Zhi Pro Fac Gar Fac Ext Cet Res Tes Res Peak Influence 1043 | . 169 170 294 113 1043 . . . . . 155 236 . . . . 352 . . . . 38 566 258 414 558 601 404 307 Initial 933 | . . . 51 8 933 . . . . . . 60 . . . . 11 . . . . 14 19 220 36 173 253 172 20 Average 238 | . 70 75 159 52 540 . . . . . 91 94 . . . . 116 . . . . 16 285 123 211 465 421 204 132 Maximum Alert Level 3 | . . . 1 . 3 . . . . . . 1 . . . . 1 . . . . . 2 1 2 2 2 2 1 Low Security (%) 54 | 100 100 100 54 100 17 . . . . 100 100 82 . . . . 70 . . . . 100 33 77 49 2 . 48 76 Level 1 25 | . . . 45 . 16 . . . . . . 17 . . . . 29 . . . . . 33 22 40 18 44 50 23 Level 2 13 | . . . . . 23 . . . . . . . . . . . . . . . . . 32 . 10 78 55 . . Level 3 7 | . . . . . 42 . . . . . . . . . . . . . . . . . . . . . . . . Level 4 . | . . . . . . . . . . . . . . . . . . . . . . . . . . . . . . Level 5 . | . . . . . . . . . . . . . . . . . . . . . . . . . . . . . . High Security . | . . . . . . . . . . . . . . . . . . . . . . . . . . . . . . Max Security . | . . . . . . . . . . . . . . . . . . . . . . . . . . . . . . Squads Dispatched 37 | . . 1 1 . 14 . . . . . . 5 . . . 1 4 . . . . . . 1 2 . 3 3 2 Investigation 5 | . . . . . 3 . . . . . . 1 . . . . . . . . . . . . . . 1 . . Extermination 13 | . . . . . 5 . . . . . . 1 . . . . 3 . . . . . . 1 . . 1 2 . Reinforcement 13 | . . 1 1 . 2 . . . . . . 2 . . . . 1 . . . . . . . 2 . 1 1 2 Assault 3 | . . . . . 2 . . . . . . . . . . 1 . . . . . . . . . . . . . Garrison 3 | . . . . . 2 . . . . . . 1 . . . . . . . . . . . . . . . . . Intercept . | . . . . . . . . . . . . . . . . . . . . . . . . . . . . . . Construction Impeded 2 | . . . . . . . . . . . . 1 . . . . . . . . . . . . 1 . . . . Haulers Reinforced 3 | . . . . . 2 . . . . . . 1 . . . . . . . . . . . . . . . . . Stealth | -11 -10 -9 -9 -9 -7 -7 -7 -7 -6 -6 -6 -6 -6 -6 -6 -5 -5 -5 -5 -5 -4 -4 -4 -4 -4 -4 -3 -3 -2 --------- Run | Scr Mat Mat Sto Rec Fac Low Low Zio Pro Fac Gar Fac Low Low Dat Pro Fac Upp Upp Zhi Pro Fac Gar Fac Ext Cet Res Tes Res Distress Signals 12 | . . 1 2 . . . . . . . . 1 . . . 1 1 . . . . . 1 1 1 1 2 . . Communications Jammed 11 | . . . . . . . . . . . . . . . . . . . . . . . . . . . 11 . . Distress Signals 11 | . . . . . . . . . . . . . . . . . . . . . . . . . . . 11 . . Times Spotted 378 | . 12 8 16 16 45 6 4 . 4 . 6 24 4 12 . 15 36 5 8 . 3 2 23 7 20 14 20 40 28 Peak Tracking Total 12 | . 3 3 3 8 6 3 4 . 2 . 3 3 3 3 . 5 5 1 4 . 2 3 7 2 6 5 5 12 9 Tactical Retreats 39 | . . . . . . 2 . . . . 1 4 2 5 . . 4 3 1 . . . 2 . . . 2 9 4 Traps | -11 -10 -9 -9 -9 -7 -7 -7 -7 -6 -6 -6 -6 -6 -6 -6 -5 -5 -5 -5 -5 -4 -4 -4 -4 -4 -4 -3 -3 -2 ------- Run | Scr Mat Mat Sto Rec Fac Low Low Zio Pro Fac Gar Fac Low Low Dat Pro Fac Upp Upp Zhi Pro Fac Gar Fac Ext Cet Res Tes Res Traps Triggered 33 | . 8 1 2 . 2 . . . . . 2 3 . . . . 2 . . . . 1 8 1 2 . 1 . . Indirectly 1 | . . . . . . . . . . . . . . . . . 1 . . . . . . . . . . . . Trap Hack Attempts . | . . . . . . . . . . . . . . . . . . . . . . . . . . . . . . Triggered . | . . . . . . . . . . . . . . . . . . . . . . . . . . . . . . Disarmed . | . . . . . . . . . . . . . . . . . . . . . . . . . . . . . . Reprogrammed . | . . . . . . . . . . . . . . . . . . . . . . . . . . . . . . Reused . | . . . . . . . . . . . . . . . . . . . . . . . . . . . . . . Traps Extracted . | . . . . . . . . . . . . . . . . . . . . . . . . . . . . . . Installed . | . . . . . . . . . . . . . . . . . . . . . . . . . . . . . . Triggered 6 | . . . . . . 1 . . . . . . . 1 . 2 . 2 . . . . . . . . . . . Machines | -11 -10 -9 -9 -9 -7 -7 -7 -7 -6 -6 -6 -6 -6 -6 -6 -5 -5 -5 -5 -5 -4 -4 -4 -4 -4 -4 -3 -3 -2 ---------- Run | Scr Mat Mat Sto Rec Fac Low Low Zio Pro Fac Gar Fac Low Low Dat Pro Fac Upp Upp Zhi Pro Fac Gar Fac Ext Cet Res Tes Res Machines Disabled 22 | . . . 1 . 6 . . . . . . . . . . 1 6 . . . . . 2 . 3 1 . 2 . Max in Single Turn 5 | . . . 1 . 5 . . . . . . . . . . 1 4 . . . . . 1 . 2 1 . 1 . Garrison Access 6 | . . . . . 1 . . . . . . 2 . . . . 1 . . . . . . . . . 1 . 1 Garrison Relay 2 | . . . . . . . . . . . . . . . . . . . . . . . 2 . . . . . . Machines Sabotaged . | . . . . . . . . . . . . . . . . . . . . . . . . . . . . . . Garrisons Compromised . | . . . . . . . . . . . . . . . . . . . . . . . . . . . . . . Overloaded Fab Kills . | . . . . . . . . . . . . . . . . . . . . . . . . . . . . . . Fab Network Shutdowns . | . . . . . . . . . . . . . . . . . . . . . . . . . . . . . . Hacking | -11 -10 -9 -9 -9 -7 -7 -7 -7 -6 -6 -6 -6 -6 -6 -6 -5 -5 -5 -5 -5 -4 -4 -4 -4 -4 -4 -3 -3 -2 --------- Run | Scr Mat Mat Sto Rec Fac Low Low Zio Pro Fac Gar Fac Low Low Dat Pro Fac Upp Upp Zhi Pro Fac Gar Fac Ext Cet Res Tes Res Machines Accessed 52 | . . . . . 5 . 2 . . 1 . 5 . 1 3 . 8 . . 4 . 2 . 4 7 1 7 1 1 Terminals 28 | . . . . . 2 . . . . . . 3 . . . . 5 . . . . 1 . 3 7 1 6 . . Fabricators 3 | . . . . . . . . . . . . . . . . . 2 . . . . . . 1 . . . . . Repair Stations . | . . . . . . . . . . . . . . . . . . . . . . . . . . . . . . Recycling Units . | . . . . . . . . . . . . . . . . . . . . . . . . . . . . . . Scanalyzers 3 | . . . . . 2 . . . . . . . . . . . . . . . . . . . . . . 1 . Garrison Access 8 | . . . . . 1 . . . . 1 . 2 . . . . 1 . . . . 1 . . . . 1 . 1 Total Hacks 181 | . . . . . 12 . 3 . . 1 . 31 . 1 23 . 23 . . 17 . 6 . 14 18 2 25 4 1 Successful 141 | . . . . . 9 . 3 . . 1 . 21 . 1 23 . 15 . . 17 . 2 . 12 14 1 17 4 1 Failed 40 | . . . . . 3 . . . . . . 10 . . . . 8 . . . . 4 . 2 4 1 8 . . Catastrophic . | . . . . . . . . . . . . . . . . . . . . . . . . . . . . . . Database Lockouts . | . . . . . . . . . . . . . . . . . . . . . . . . . . . . . . Manual 81 | . . . 1 . 2 . . . . . . 25 . . . . 15 . . . . 5 . 10 4 1 18 . . Terminals 111 | . . . . . 5 . . . . . . 29 . . . . 16 . . . . 5 . 12 18 2 24 . . Fabricators 7 | . . . . . . . . . . . . . . . . . 5 . . . . . . 2 . . . . . Repair Stations . | . . . . . . . . . . . . . . . . . . . . . . . . . . . . . . Recycling Units . | . . . . . . . . . . . . . . . . . . . . . . . . . . . . . . Scanalyzers 10 | . . . . . 6 . . . . . . . . . . . . . . . . . . . . . . 4 . Garrison Access 9 | . . . . . 1 . . . . 1 . 2 . . . . 2 . . . . 1 . . . . 1 . 1 Terminal Hacks 91 | . . . . . 2 . 3 . . . . 15 . 1 23 . 4 . . 17 . . . 4 10 1 11 . . Record 19 | . . . . . . . 2 . . . . 6 . . 6 . . . . 5 . . . . . . . . . Part Schematic 11 | . . . . . . . . . . . . . . . 6 . . . . 4 . . . . 1 . . . . Robot Schematic 8 | . . . . . . . . . . . . . . . 8 . . . . . . . . . . . . . . Robot Analysis 5 | . . . . . . . . . . . . . . . . . . . . 4 . . . . 1 . . . . Prototype ID Bank 17 | . . . . . . . . . . . . 4 . . 3 . . . . 4 . . . . 3 . 3 . . Open Door 4 | . . . . . . . 1 . . . . . . 1 . . . . . . . . . . 1 1 . . . Branch Access Points 4 | . . . . . . . . . . . . 1 . . . . 1 . . . . . . 1 . . 1 . . Terminal Index 5 | . . . . . . . . . . . . 2 . . . . 1 . . . . . . 1 . . 1 . . Alert Level 2 | . . . . . . . . . . . . 1 . . . . . . . . . . . 1 . . . . . Unreport Threat 4 | . . . . . 1 . . . . . . 1 . . . . . . . . . . . 1 . . 1 . . Locate Traps 10 | . . . . . 1 . . . . . . . . . . . 2 . . . . . . . 4 . 3 . . Patrol Status 1 | . . . . . . . . . . . . . . . . . . . . . . . . . . . 1 . . Zone Layout 1 | . . . . . . . . . . . . . . . . . . . . . . . . . . . 1 . . Fabricator Hacks 6 | . . . . . . . . . . . . . . . . . 4 . . . . . . 2 . . . . . Load Schematic 3 | . . . . . . . . . . . . . . . . . 2 . . . . . . 1 . . . . . Build 3 | . . . . . . . . . . . . . . . . . 2 . . . . . . 1 . . . . . Repair Station Hacks . | . . . . . . . . . . . . . . . . . . . . . . . . . . . . . . Recycling Unit Hacks . | . . . . . . . . . . . . . . . . . . . . . . . . . . . . . . Scanalyzer 10 | . . . . . 6 . . . . . . . . . . . . . . . . . . . . . . 4 . Insert Component 4 | . . . . . 2 . . . . . . . . . . . . . . . . . . . . . . 2 . Analyze 6 | . . . . . 4 . . . . . . . . . . . . . . . . . . . . . . 2 . Garrison Access Hacks 8 | . . . . . 1 . . . . 1 . 2 . . . . 2 . . . . 1 . . . . . . 1 Unlock Access 2 | . . . . . . . . . . 1 . . . . . . . . . . . 1 . . . . . . . Seal Access 5 | . . . . . 1 . . . . . . 2 . . . . 1 . . . . . . . . . . . 1 Coupler Status 1 | . . . . . . . . . . . . . . . . . 1 . . . . . . . . . . . . Unauthorized Hacks 26 | . . . . . . . . . . . . 4 . . . . 5 . . . . 1 . 6 4 . 6 . . Terminals 25 | . . . . . . . . . . . . 4 . . . . 5 . . . . 1 . 6 4 . 5 . . Track 4 | . . . . . . . . . . . . 1 . . . . . . . . . . . 1 1 . 1 . . Assimilate 4 | . . . . . . . . . . . . . . . . . 2 . . . . . . 1 . . 1 . . Botnet 15 | . . . . . . . . . . . . 2 . . . . 3 . . . . 1 . 3 3 . 3 . . Operators 2 | . . . . . . . . . . . . 1 . . . . . . . . . . . 1 . . . . . Fabricators . | . . . . . . . . . . . . . . . . . . . . . . . . . . . . . . Repair Stations . | . . . . . . . . . . . . . . . . . . . . . . . . . . . . . . Recycling Units . | . . . . . . . . . . . . . . . . . . . . . . . . . . . . . . Scanalyzers . | . . . . . . . . . . . . . . . . . . . . . . . . . . . . . . Garrison Access 1 | . . . . . . . . . . . . . . . . . . . . . . . . . . . 1 . . Jam 1 | . . . . . . . . . . . . . . . . . . . . . . . . . . . 1 . . Data Cores Recovered 1 | . . . . . . . . . . . . . . . . . . . . . . . . . 1 . . . . Used . | . . . . . . . . . . . . . . . . . . . . . . . . . . . . . . Hacking Detections 32 | . . . 1 . 4 . . . . . . 3 . . . . 7 . . . . 1 . 2 6 1 6 1 . Full Trace Events 4 | . . . . . 3 . . . . . . 1 . . . . . . . . . . . . . . . . . Feedback Events 1 | . . . . . 1 . . . . . . . . . . . . . . . . . . . . . . . . Corruption 1 | . . . . . 1 . . . . . . . . . . . . . . . . . . . . . . . . Feedback Blocked . | . . . . . . . . . . . . . . . . . . . . . . . . . . . . . . Robot Schematics Acquired 8 | . . . . . . . . . . . . . . . 8 . . . . . . . . . . . . . . Robots Built . | . . . . . . . . . . . . . . . . . . . . . . . . . . . . . . Matter . | . . . . . . . . . . . . . . . . . . . . . . . . . . . . . . Time . | . . . . . . . . . . . . . . . . . . . . . . . . . . . . . . Total Robot Build Rating . | . . . . . . . . . . . . . . . . . . . . . . . . . . . . . . Part Schematics Acquired 12 | . . . . . 1 . . . . . . . . . 6 . . . . 4 . . . . 1 . . . . Parts Built 3 | . . . . . . . . . . . . . . . . . 2 . . . . . . 1 . . . . . Matter 921 | . . . . . . . . . . . . . . . . . 603 . . . . . . 318 . . . . . Time 405 | . . . . . . . . . . . . . . . . . 236 . . . . . . 169 . . . . . Total Part Build Rating 17 | . . . . . . . . . . . . . . . . . 11 . . . . . . 6 . . . . . Parts Repaired . | . . . . . . . . . . . . . . . . . . . . . . . . . . . . . . Time . | . . . . . . . . . . . . . . . . . . . . . . . . . . . . . . Parts Recycled . | . . . . . . . . . . . . . . . . . . . . . . . . . . . . . . Recycled Matter . | . . . . . . . . . . . . . . . . . . . . . . . . . . . . . . Retrieved Matter . | . . . . . . . . . . . . . . . . . . . . . . . . . . . . . . Retrieved Components . | . . . . . . . . . . . . . . . . . . . . . . . . . . . . . . Parts Scanalyzed 2 | . . . . . 1 . . . . . . . . . . . . . . . . . . . . . . 1 . Part Schematics Acquired 1 | . . . . . 1 . . . . . . . . . . . . . . . . . . . . . . . . Parts Damaged . | . . . . . . . . . . . . . . . . . . . . . . . . . . . . . . Bothacking | -11 -10 -9 -9 -9 -7 -7 -7 -7 -6 -6 -6 -6 -6 -6 -6 -5 -5 -5 -5 -5 -4 -4 -4 -4 -4 -4 -3 -3 -2 ------------ Run | Scr Mat Mat Sto Rec Fac Low Low Zio Pro Fac Gar Fac Low Low Dat Pro Fac Upp Upp Zhi Pro Fac Gar Fac Ext Cet Res Tes Res Used RIF Installer 2 | . . . . . . . . . . . 1 . . . . . . . . . . . 1 . . . . . . Signal Jammer 1 | . . . . . . . . . . . . . . . . . . . . . . . 1 . . . . . . Robots Hacked . | . . . . . . . . . . . . . . . . . . . . . . . . . . . . . . Non-combat . | . . . . . . . . . . . . . . . . . . . . . . . . . . . . . . Combat . | . . . . . . . . . . . . . . . . . . . . . . . . . . . . . . Robot Hacks Applied . | . . . . . . . . . . . . . . . . . . . . . . . . . . . . . . Relay Couplers Released 11 | . . . . . . . . . . . . . . . . . . . . . . . 8 . . . 3 . . Machine Destruction 8 | . . . . . . . . . . . . . . . . . . . . . . . 8 . . . . . . Programmers 3 | . . . . . . . . . . . . . . . . . . . . . . . . . . . 3 . . Attached 2 | . . . . . . . . . . . . . . . . . . . . . . . 2 . . . . . . Robots Rewired 4 | . . . . . . . . . . . . . . . . 1 . . . . . . 3 . . . . . . Allies Hacked . | . . . . . . . . . . . . . . . . . . . . . . . . . . . . . . Hacks Repelled . | . . . . . . . . . . . . . . . . . . . . . . . . . . . . . . Allies | -11 -10 -9 -9 -9 -7 -7 -7 -7 -6 -6 -6 -6 -6 -6 -6 -5 -5 -5 -5 -5 -4 -4 -4 -4 -4 -4 -3 -3 -2 -------- Run | Scr Mat Mat Sto Rec Fac Low Low Zio Pro Fac Gar Fac Low Low Dat Pro Fac Upp Upp Zhi Pro Fac Gar Fac Ext Cet Res Tes Res Total Allies 31 | . . . 1 . . . . 4 . . . . . . . 2 2 . . . . . 3 1 13 5 . . . Largest Group 11 | . . . 1 1 . . . 4 4 . . . . . . 2 2 . . . . . 3 2 8 11 11 . . Highest-Rated Group 834 | . . . 99 99 . . . 92 92 . . . . . . 143 52 . . . . . 138 92 440 834 834 . . Highest-Rated Ally 156 | . . . 99 99 . . . 28 28 . . . . . . 94 26 . . . . . 46 46 156 156 156 . . Total Orders 2 | . . . . . . . . . . . . . . . . . . . . . . . 2 . . . . . . STAY 1 | . . . . . . . . . . . . . . . . . . . . . . . 1 . . . . . . FOLLOW 1 | . . . . . . . . . . . . . . . . . . . . . . . 1 . . . . . . Ally Attacks 234 | . . . 25 . . . . . 17 . . . . . . 20 . . . . . . 5 1 39 50 77 . . Total Damage 6650 | . . . 758 . . . . . 428 . . . . . . 524 . . . . . . 102 8 1190 926 2714 . . Kills 45 | . . . 12 . . . . . 3 . . . . . . 5 . . . . . . 1 . 8 5 11 . . Allies Corrupted 1 | . . . . . . . . . . . . . . . . . . . . . . . . . 1 . . . . Allies Melted . | . . . . . . . . . . . . . . . . . . . . . . . . . . . . . . Intel | -11 -10 -9 -9 -9 -7 -7 -7 -7 -6 -6 -6 -6 -6 -6 -6 -5 -5 -5 -5 -5 -4 -4 -4 -4 -4 -4 -3 -3 -2 ------- Run | Scr Mat Mat Sto Rec Fac Low Low Zio Pro Fac Gar Fac Low Low Dat Pro Fac Upp Upp Zhi Pro Fac Gar Fac Ext Cet Res Tes Res Robot Analysis Total 5 | . . . . . . . . . . . . . . . . . . . . 4 . . . . 1 . . . . Derelict Logs Recovered 9 | . . . . . . 1 1 1 1 . . . . . . 1 . 1 2 . 1 . . . . . . . . Drone Launches . | . . . . . . . . . . . . . . . . . . . . . . . . . . . . . . Drone Recoveries . | . . . . . . . . . . . . . . . . . . . . . . . . . . . . . . Exploration | -11 -10 -9 -9 -9 -7 -7 -7 -7 -6 -6 -6 -6 -6 -6 -6 -5 -5 -5 -5 -5 -4 -4 -4 -4 -4 -4 -3 -3 -2 ------------- Run | Scr Mat Mat Sto Rec Fac Low Low Zio Pro Fac Gar Fac Low Low Dat Pro Fac Upp Upp Zhi Pro Fac Gar Fac Ext Cet Res Tes Res Turns Passed 23832 | 85 839 257 877 373 2450 1174 1084 1449 507 21 256 1459 817 1648 150 817 1900 542 1696 166 219 152 1431 574 799 317 709 808 256 Spaces Moved 14082 | 47 420 102 398 186 1087 580 562 787 263 11 113 648 427 643 76 378 1181 306 391 160 267 214 923 534 894 308 947 875 354 Core 242 | 2 . . . . . . . . . . . . . 12 . . . . 140 . . . 88 . . . . . . Treads 6950 | 45 420 102 398 186 1087 580 562 787 263 11 113 648 427 631 76 378 236 . . . . . . . . . . . . Legs . | . . . . . . . . . . . . . . . . . . . . . . . . . . . . . . Wheels . | . . . . . . . . . . . . . . . . . . . . . . . . . . . . . . Hover 6890 | . . . . . . . . . . . . . . . . . 945 306 251 160 267 214 835 534 894 308 947 875 354 Flight . | . . . . . . . . . . . . . . . . . . . . . . . . . . . . . . Fastest Speed 36 | 50 160 200 200 200 180 180 180 180 180 180 180 180 180 180 200 180 48 53 53 48 50 52 44 40 36 36 38 41 38 Average Speed 131 | 155 171 200 200 200 183 186 185 181 180 180 180 180 180 220 200 189 76 67 405 54 64 63 79 42 57 58 50 56 50 Slowest Speed 2250 | 160 200 200 200 200 200 200 200 200 180 180 180 180 180 2250 200 200 182 121 900 55 71 108 300 44 100 100 61 110 103 Overloaded Moves 38 | . . . . . . . . . . . . . . . . . . . . . . . . . . . . 38 . Propulsion Burnouts . | . . . . . . . . . . . . . . . . . . . . . . . . . . . . . . Robots Hopped . | . . . . . . . . . . . . . . . . . . . . . . . . . . . . . . Cave-ins Triggered 1 | . . . . . . . . . . . . . . . . . . . . . . . . . . . . . 1 Teleports 1 | . . . . . . . . . . . . . . . . . . . . . . . . . . . . 1 . Exploration Rate (%) 50 | 5 83 14 67 58 28 71 70 80 51 . 35 22 69 76 68 50 34 32 61 60 48 9 63 17 87 78 26 94 13 Regions Visited 29 Branch Regions 17 Pre-discovered Areas 5 | . . . . . . . . . . . . . . . 1 . . . 1 3 . . . . . . . . . Known Exits Taken 27 | 1 1 1 1 1 1 1 1 1 1 1 . 1 1 1 1 1 1 1 1 1 1 1 . 1 1 1 1 1 . Unknown Exits Taken . | . . . . . . . . . . . . . . . . . . . . . . . . . . . . . . Scrap Searched 14 | . . . . . . 1 3 1 . . . . 3 2 . 1 . 1 . . 2 . . . . . . . . Spaces Dug 32 | . . . . . . . . . . . . . . . . . 7 . . . . 2 1 . . . 4 13 5 Terrain Destroyed 169 | . . . . . . 6 8 . . . . . . 2 . 17 57 . 1 . . 2 1 3 25 25 4 13 5 Melee 31 | . . . . . . . . . . . . . . . . . 6 . . . . 2 1 . . . 4 13 5 Projectile 4 | . . . . . . . . . . . . . . . . . 3 . 1 . . . . . . . . . . AOE 134 | . . . . . . 6 8 . . . . . . 2 . 17 48 . . . . . . 3 25 25 . . . Terrain Rammed . | . . . . . . . . . . . . . . . . . . . . . . . . . . . . . . Walls Destroyed . | . . . . . . . . . . . . . . . . . . . . . . . . . . . . . . Machines Disabled . | . . . . . . . . . . . . . . . . . . . . . . . . . . . . . . Actions | -11 -10 -9 -9 -9 -7 -7 -7 -7 -6 -6 -6 -6 -6 -6 -6 -5 -5 -5 -5 -5 -4 -4 -4 -4 -4 -4 -3 -3 -2 --------- Run | Scr Mat Mat Sto Rec Fac Low Low Zio Pro Fac Gar Fac Low Low Dat Pro Fac Upp Upp Zhi Pro Fac Gar Fac Ext Cet Res Tes Res Total 18284 | 56 477 135 464 187 1313 643 595 808 282 13 132 828 469 839 75 446 2095 625 453 229 300 227 1459 857 1129 422 1165 1153 408 Wait 2652 | . 2 . 4 . 46 39 7 . 5 . . 101 24 142 . 24 725 304 17 52 14 3 283 261 168 89 143 191 8 Move 14051 | 46 419 101 397 185 1086 579 561 786 262 10 111 647 426 642 75 377 1180 305 390 159 266 213 921 533 893 307 946 874 354 Hop . | . . . . . . . . . . . . . . . . . . . . . . . . . . . . . . Pick Up 162 | 3 14 7 22 1 20 . 6 3 1 . . 7 4 5 . 2 26 1 . 6 1 1 8 4 4 . 6 7 3 Fast Attach 124 | 7 8 5 2 . 8 . 1 6 1 . . 4 . 2 . 3 10 . 1 3 2 1 13 8 7 2 12 14 4 Attach 107 | . 1 4 2 . 15 1 3 3 1 2 . 5 1 5 . 2 17 . 4 . 2 5 6 4 1 . 6 9 8 Detach 39 | . 1 2 1 . 4 . 1 5 . . . 1 . 1 . . 3 . . . 2 . 6 3 1 1 2 2 3 Swap 54 | . 2 . 1 . 1 2 7 . 1 . . 2 1 2 . 1 19 1 2 1 . . 2 2 1 3 . 1 2 Drop 179 | . 1 5 21 . 12 1 4 5 2 1 . 2 4 6 . 5 47 . 1 2 2 2 2 12 11 1 9 16 5 Fire 598 | . 29 11 14 . 119 21 5 . 9 . 19 57 9 34 . 31 62 14 11 . . . 65 5 40 19 4 5 15 Melee 193 | . . . . . . . . . . . . . . . . . 6 . 27 6 11 2 36 25 3 . 37 34 6 Ram . | . . . . . . . . . . . . . . . . . . . . . . . . . . . . . . Kick . | . . . . . . . . . . . . . . . . . . . . . . . . . . . . . . Crush 1 | . . . . 1 . . . . . . . . . . . . . . . . . . . . . . . . . Escape Stasis 109 | . . . . . 2 . . . . . 2 2 . . . . . . . . . . 103 . . . . . . Rewire 15 | . . . . . . . . . . . . . . . . 1 . . . . . . 14 . . . . . . Trap . | . . . . . . . . . . . . . . . . . . . . . . . . . . . . . . Miscellaneous . | . . . . . . . . . . . . . . . . . . . . . . . . . . . . . . Route ------- -11/Scrapyard -10/Materials (discovered 2 exits: *Mat x2) -9/Materials -9/Storage (discovered 2 exits: *Mat / *Rec) -9/Recycling -7/Factory (discovered 2 exits: *Fac / *Low) -7/Lower Caves -7/Lower Caves (discovered 2 exits: *Fac / *Zio) -7/Zion -6/Proximity Caves -6/Factory (discovered 3 exits: Fac / Low / Gar) -6/Garrison -6/Factory (discovered 2 exits: *Low x2) -6/Lower Caves -6/Lower Caves (discovered 2 exits: *Fac / *Dat) -6/Data Miner -5/Proximity Caves -5/Factory (discovered 5 exits: *Fac x3 / *Upp x2) -5/Upper Caves -5/Upper Caves (discovered 2 exits: Fac / *Zhi) -5/Zhirov -4/Proximity Caves -4/Factory (discovered 2 exits: *Upp / Gar) -4/Garrison (discovered 2 exits: *Fac x2) -4/Factory (discovered 5 exits: Upp x2 / *Ext x2 / Arm) -4/Extension (discovered 3 exits: *Res x2 / *Cet) -4/Cetus (discovered 3 exits: *Res x2 / *Arc) -3/Research (discovered 2 exits: *Tes x2) -3/Testing -2/Research History --------- Turn | Location | Event 7 | -11/Scrapyard | Identified exit to Materials 7 | -11/Scrapyard | Discovered exit to Materials (range 15) 86 | -11/Scrapyard | Entered Materials 86 | -10/Materials | Evolved 1 slot: Utility x1 306 | -10/Materials | Build established: Hacker-Mutant 437 | -10/Materials | Identified exit to Materials 437 | -10/Materials | Discovered exit to Materials (range 16) 847 | -10/Materials | Discovered exit to Materials (range 15) 925 | -10/Materials | Entered another Materials area 925 | -9/Materials | Evolved 2 slots: Utility x2 946 | -9/Materials | Build established: Hauler-Mutant 1129 | -9/Materials | Identified exit to Storage 1129 | -9/Materials | Discovered exit to Storage (range 12) 1182 | -9/Materials | Entered Storage 1269 | -9/Storage | Met 01-MTF 1691 | -9/Storage | Identified exit to Materials 1691 | -9/Storage | Discovered exit to Materials (range 5) 2048 | -9/Storage | Used back door to open Recycling access 2048 | -9/Storage | Identified exit to Recycling 2048 | -9/Storage | Discovered exit to Recycling (range 3) 2059 | -9/Storage | Entered Recycling 2059 | -9/Recycling | Accompanied by 1 ally (01-MTF) 2064 | -9/Recycling | 01-MTF left 2088 | -9/Recycling | Spotter reported a threat 2112 | -9/Recycling | Spotter reported a threat 2132 | -9/Recycling | Spotter reported a threat 2141 | -9/Recycling | Spotter reported a threat 2163 | -9/Recycling | Spotter reported a threat 2164 | -9/Recycling | Spotter reported a threat 2164 | -9/Recycling | Spotter reported a threat 2165 | -9/Recycling | Spotter reported a threat 2165 | -9/Recycling | Spotter reported a threat 2169 | -9/Recycling | Spotter reported a threat 2185 | -9/Recycling | Spotter reported a threat 2217 | -9/Recycling | Spotter reported a threat 2218 | -9/Recycling | Spotter reported a threat 2218 | -9/Recycling | Spotter reported a threat 2226 | -9/Recycling | Spotter reported a threat 2307 | -9/Recycling | Spotter reported a threat 2309 | -9/Recycling | Spotter reported a threat 2313 | -9/Recycling | Spotter reported a threat 2390 | -9/Recycling | Spotter reported a threat 2390 | -9/Recycling | Spotter reported a threat 2401 | -9/Recycling | Identified exit to Factory 2401 | -9/Recycling | Discovered exit to Factory (range 16) 2416 | -9/Recycling | Spotter reported a threat 2420 | -9/Recycling | Spotter reported a threat 2432 | -9/Recycling | Entered Factory 2432 | -7/Factory | Evolved 4 slots: Propulsion x1, Utility x2, Weapon x1 2832 | -7/Factory | First assault squad dispatched 2855 | -7/Factory | Build established: Hauler-Tank 3141 | -7/Factory | Garrison activated, responded to threat 3351 | -7/Factory | Build established: Hauler-Gunner 3498 | -7/Factory | Identified exit to Factory 3498 | -7/Factory | Discovered exit to Factory (range 4) 3831 | -7/Factory | Build established: Hauler-Skirmisher 4788 | -7/Factory | Garrison activated, responded to threat 4840 | -7/Factory | Identified exit to Lower Caves 4840 | -7/Factory | Discovered exit to Lower Caves (range 8) 4882 | -7/Factory | Entered Lower Caves 4939 | -7/Lower Caves | Encountered a Warlord checkpoint 4968 | -7/Lower Caves | Learned location of 1 exit from Factory 5666 | -7/Lower Caves | Build established: Hauler-Mutant 6020 | -7/Lower Caves | Identified exit to Lower Caves 6020 | -7/Lower Caves | Discovered exit to Lower Caves (range 15) 6056 | -7/Lower Caves | Entered another Lower Caves area 6059 | -7/Lower Caves | Encountered a Warlord checkpoint 6087 | -7/Lower Caves | Discovered exit to Factory (range 5) 6389 | -7/Lower Caves | Ambushed by wild Derelicts 6946 | -7/Lower Caves | Learned Factory terminal intel 7062 | -7/Lower Caves | Build established: Hauler-Skirmisher 7120 | -7/Lower Caves | Identified exit to Zion 7120 | -7/Lower Caves | Discovered exit to Zion (range 6) 7140 | -7/Lower Caves | Entered Zion 7283 | -7/Zion | Found Prototype Processor 7283 | -7/Zion | Identified Exp. Targeting Computer 7287 | -7/Zion | Found Prototype Processor 7287 | -7/Zion | Identified Exp. Core Analyzer 7304 | -7/Zion | Found Prototype Hackware 7304 | -7/Zion | Identified Exp. System Shield 7308 | -7/Zion | Found Prototype Processor 7308 | -7/Zion | Identified Exp. Target Analyzer 7311 | -7/Zion | Found Prototype Processor 7311 | -7/Zion | Identified Spectral Analyzer 7312 | -7/Zion | System corruption reached 10% 7315 | -7/Zion | Found Prototype Processor 7315 | -7/Zion | Identified Exp. Signal Interpreter 7319 | -7/Zion | Found Prototype Processor 7358 | -7/Zion | Identified exit to Proximity Caves 7358 | -7/Zion | Discovered exit to Proximity Caves (range 8) 7455 | -7/Zion | Gained Derelict followers 7493 | -7/Zion | System corruption cleaned by Quarantine Array 7580 | -7/Zion | Build established: Hacker-Gunner 7641 | -7/Zion | Acquired unknown access codes intercepted by a Zionite 7887 | -7/Zion | Learned Factory security intel 7965 | -7/Zion | Given the Hacking Drone Bay 8589 | -7/Zion | Entered Proximity Caves 8589 | -6/Proximity Caves | Accompanied by 4 allies 8700 | -6/Proximity Caves | Attracted the attention of an 0b10 checkpoint 8830 | -6/Proximity Caves | Learned location of 1 exit from Factory 8875 | -6/Proximity Caves | Spotted B-75 Beast 8901 | -6/Proximity Caves | Destroyed B-75 Beast 9083 | -6/Proximity Caves | Discovered exit to Factory (range 8) 9096 | -6/Proximity Caves | Entered Factory 9096 | -6/Factory | Evolved 2 slots: Utility x2 9097 | -6/Factory | Identified exit to Factory 9097 | -6/Factory | Identified exit to Lower Caves 9097 | -6/Factory | Identified Exp. Terrain Scan Processor 9099 | -6/Factory | Loaded intel: 20 terminal locations 9115 | -6/Factory | Identified exit to Garrison 9117 | -6/Factory | Entered Garrison 9256 | -6/Garrison | Triggered checkpoint 9330 | -6/Garrison | Identified exit to Factory 9330 | -6/Garrison | Discovered exit to Factory (range 10) 9357 | -6/Garrison | Installed Relay Interface Framework 9373 | -6/Garrison | Entered Factory 9438 | -6/Factory | Garrison activated, responded to threat 10084 | -6/Factory | Build established: Hacker-Skirmisher 10832 | -6/Factory | Entered Lower Caves 11155 | -6/Lower Caves | Encountered a Warlord checkpoint 11295 | -6/Lower Caves | Attracted the attention of an 0b10 checkpoint 11601 | -6/Lower Caves | Identified exit to Lower Caves 11601 | -6/Lower Caves | Discovered exit to Lower Caves (range 15) 11602 | -6/Lower Caves | Build established: Hacker-Mutant 11649 | -6/Lower Caves | Entered another Lower Caves area 11733 | -6/Lower Caves | Discovered exit to Factory (range 13) 13173 | -6/Lower Caves | Encountered a Warlord checkpoint 13236 | -6/Lower Caves | Attracted the attention of an 0b10 checkpoint 13259 | -6/Lower Caves | Identified exit to Data Miner 13259 | -6/Lower Caves | Discovered exit to Data Miner (range 15) 13297 | -6/Lower Caves | Entered Data Miner 13297 | -6/Data Miner | Identified exit to Proximity Caves 13297 | -6/Data Miner | Discovered exit to Proximity Caves (range 7) 13335 | -6/Data Miner | Met Data Miner 13352 | -6/Data Miner | Build established: Hauler-Mutant 13369 | -6/Data Miner | Learned location of Section 7 (-2) 13369 | -6/Data Miner | Acquired the access code to Warlord's prototype stash 13397 | -6/Data Miner | Received God Mode back door access code from Data Miner 13447 | -6/Data Miner | Entered Proximity Caves 13865 | -5/Proximity Caves | Attracted the attention of an 0b10 outpost 13866 | -5/Proximity Caves | Escorted by Enhanced Grunt 14251 | -5/Proximity Caves | Learned 12 Factory zone layouts 14255 | -5/Proximity Caves | Discovered exit to Factory (range 6) 14264 | -5/Proximity Caves | Entered Factory 14264 | -5/Factory | Evolved 2 slots: Propulsion x1, Utility x1 14265 | -5/Factory | Identified exit to Factory 14574 | -5/Factory | Fabricated Lgt. Regenerative Plating (x1) 14888 | -5/Factory | Build established: Hauler-Skirmisher 15211 | -5/Factory | Build established: Scavenger-Mutant 15378 | -5/Factory | Discovered exit to Factory (range 13) 15591 | -5/Factory | Fabricated Exp. Cesium-ion Thruster? 15662 | -5/Factory | Spotted B-75 Beast 15734 | -5/Factory | Discovered exit to Factory (range 24) 15879 | -5/Factory | Identified exit to Upper Caves 16164 | -5/Factory | Entered Upper Caves 16253 | -5/Upper Caves | Attracted the attention of an 0b10 checkpoint 16646 | -5/Upper Caves | Learned Factory terminal intel 16692 | -5/Upper Caves | Identified exit to Upper Caves 16692 | -5/Upper Caves | Discovered exit to Upper Caves (range 11) 16701 | -5/Upper Caves | Encountered a Warlord checkpoint 16706 | -5/Upper Caves | Entered another Upper Caves area 16716 | -5/Upper Caves | Discovered exit to Factory (range 18) 16775 | -5/Upper Caves | P-70 Sage assimilated allied GG-L4W(k) 16839 | -5/Upper Caves | Lost 3 parts (1n2w) 17145 | -5/Upper Caves | Build established: Hacker-Mutant 17831 | -5/Upper Caves | Build established: Hacker-Assassin 17852 | -5/Upper Caves | Encountered a Warlord checkpoint 18332 | -5/Upper Caves | Spotted B-75 Beast 18339 | -5/Upper Caves | Attracted the attention of an 0b10 checkpoint 18364 | -5/Upper Caves | Identified exit to Zhirov 18364 | -5/Upper Caves | Discovered exit to Zhirov (range 15) 18371 | -5/Upper Caves | Learned 4 Factory zone layouts 18402 | -5/Upper Caves | Entered Zhirov 18402 | -5/Zhirov | Identified exit to Proximity Caves 18402 | -5/Zhirov | Discovered exit to Proximity Caves (range 3) 18412 | -5/Zhirov | Met Zhirov 18422 | -5/Zhirov | Lost 3 parts (2n1u) 18425 | -5/Zhirov | Learned location of Quarantine (-2) 18425 | -5/Zhirov | Learned location of Testing (-3) 18425 | -5/Zhirov | Learned location of Command (-1) 18428 | -5/Zhirov | Zhirov requested help retrieving the SGEMP Prototype 18437 | -5/Zhirov | Found Alien Artifact 18437 | -5/Zhirov | Identified Integrated Dissipator 18437 | -5/Zhirov | Installed Integrated Dissipator, increased core heat dissipation (+20) 18444 | -5/Zhirov | Found Alien Artifact 18568 | -5/Zhirov | Entered Proximity Caves 18576 | -4/Proximity Caves | Learned Research security intel 18684 | -4/Proximity Caves | Build established: Hacker-Mutant 18702 | -4/Proximity Caves | P-70 Sage assimilated allied RD-NA0(S) 18780 | -4/Proximity Caves | Spotted B-86 Titan 18785 | -4/Proximity Caves | Discovered exit to Factory (range 4) 18787 | -4/Proximity Caves | Entered Factory 18787 | -4/Factory | Evolved 2 slots: Power x1, Propulsion x1 18789 | -4/Factory | Loaded intel: 22 terminal locations 18890 | -4/Factory | Identified exit to Upper Caves 18890 | -4/Factory | Discovered exit to Upper Caves (range 12) 18908 | -4/Factory | Spotted B-86 Titan 18939 | -4/Factory | Identified exit to Garrison 18939 | -4/Factory | Entered Garrison 19434 | -4/Garrison | Lost 4 parts (2u2w) 19474 | -4/Garrison | Triggered checkpoint 19505 | -4/Garrison | Garrison Relay disabled 19558 | -4/Garrison | Spotted B-86 Titan 19595 | -4/Garrison | Triggered checkpoint 19689 | -4/Garrison | Destroyed B-86 Titan 19717 | -4/Garrison | Lost 4 parts (2n2w) 19747 | -4/Garrison | Identified exit to Factory 19747 | -4/Garrison | Discovered exit to Factory (range 11) 19819 | -4/Garrison | Triggered checkpoint 19973 | -4/Garrison | Discovered exit to Factory (range 11) 19988 | -4/Garrison | Expanded RIF knowledge: Signal Jamming 20028 | -4/Garrison | Triggered checkpoint 20233 | -4/Garrison | Garrison Relay disabled 20358 | -4/Garrison | Build established: Scavenger-Mutant 20370 | -4/Garrison | Entered Factory 20370 | -4/Factory | Accompanied by 2 allies 20399 | -4/Factory | Spotted B-86 Titan 20791 | -4/Factory | Fabricated Exp. Optical Array (x1) 20830 | -4/Factory | Build established: Hacker-Mutant 20920 | -4/Factory | Identified exit to Extension 20920 | -4/Factory | Identified exit to Armory 20944 | -4/Factory | Entered Extension 21018 | -4/Extension | Rescued a captive Derelict 21018 | -4/Extension | Rescued a captive Derelict 21120 | -4/Extension | Spotted B-86 Titan 21124 | -4/Extension | Rescued a captive Derelict 21167 | -4/Extension | Rescued a captive Derelict 21196 | -4/Extension | Build established: Bothacker-Mutant 21276 | -4/Extension | Disrupted transfer network 21342 | -4/Extension | Spotted B-86 Titan 21364 | -4/Extension | Allies destroyed B-86 Titan 21424 | -4/Extension | Allies destroyed B-86 Titan 21438 | -4/Extension | Identified exit to Research 21438 | -4/Extension | Discovered exit to Research (range 3) 21509 | -4/Extension | Rescued a captive Derelict 21610 | -4/Extension | Rescued A7 21654 | -4/Extension | Rescued a captive Derelict 21654 | -4/Extension | Rescued a captive Derelict 21663 | -4/Extension | System corruption reached 10% 21664 | -4/Extension | Rescued a captive Derelict 21679 | -4/Extension | Rescued a captive Derelict 21683 | -4/Extension | Rescued a captive Derelict 21687 | -4/Extension | Rescued a captive Derelict 21688 | -4/Extension | Rescued a captive Derelict 21707 | -4/Extension | Discovered exit to Research (range 10) 21708 | -4/Extension | Identified exit to Cetus 21708 | -4/Extension | Discovered exit to Cetus (range 6) 21743 | -4/Extension | Entered Cetus 21743 | -4/Cetus | Accompanied by 8 allies (A7) 21747 | -4/Cetus | Spotted Cetus Guard 21747 | -4/Cetus | Spotted Cetus Guard 21748 | -4/Cetus | Acquired a Cetus Manufacturing Module code from A7 21749 | -4/Cetus | Spotted Cetus Guard 21754 | -4/Cetus | Allies destroyed Cetus Guard 21755 | -4/Cetus | Destroyed Cetus Guard 21755 | -4/Cetus | Spotted Cetus Guard 21758 | -4/Cetus | Destroyed Cetus Guard 21761 | -4/Cetus | Destroyed Cetus Guard 21784 | -4/Cetus | Discovered exit to Research (range 23) 21855 | -4/Cetus | Started Cetus Manufacturing Module 21863 | -4/Cetus | Escorted A7 to Cetus Mainframe 21880 | -4/Cetus | Manufactured an Enhanced Grunt 21888 | -4/Cetus | Identified exit to Archives 21888 | -4/Cetus | Discovered exit to Archives (range 22) 21905 | -4/Cetus | Manufactured an Enhanced Grunt 21911 | -4/Cetus | Spotted Cetus Guard 21911 | -4/Cetus | Spotted Cetus Guard 21911 | -4/Cetus | Spotted Cetus Guard 21911 | -4/Cetus | Spotted Cetus Guard 21920 | -4/Cetus | Destroyed Cetus Guard 21922 | -4/Cetus | Destroyed Cetus Guard 21923 | -4/Cetus | Destroyed Cetus Guard 21925 | -4/Cetus | Discovered exit to Research (range 23) 21929 | -4/Cetus | Destroyed Cetus Guard 21930 | -4/Cetus | Manufactured an Enhanced Grunt 21936 | -4/Cetus | Met Revision 17 21955 | -4/Cetus | Manufactured an Enhanced Grunt 21980 | -4/Cetus | Manufactured an Enhanced Grunt 22060 | -4/Cetus | Entered Research 22060 | -3/Research | Accompanied by 11 allies (A7) 22060 | -3/Research | Evolved 2 slots: Propulsion x1, Utility x1 22065 | -3/Research | Received a hacking code to weaken MAIN.C 22094 | -3/Research | Identified exit to Testing 22112 | -3/Research | Incoming investigation squad redirected 22235 | -3/Research | Build established: Hacker-Mutant 22240 | -3/Research | Lost 4 parts (1n1u2w) 22266 | -3/Research | Found Fusion Bomb Launcher 22346 | -3/Research | Spotted B-86 Titan 22369 | -3/Research | Found Prototype Device 22369 | -3/Research | Identified EM Dispersion Field 22769 | -3/Research | Entered Testing 22888 | -3/Testing | Identified Transdimensional Reconstructor 22983 | -3/Testing | Spotted PY-63W0EGFBIE 23006 | -3/Testing | Spotted Striker 23009 | -3/Testing | Spotted Striker 23116 | -3/Testing | System corruption reached 10% 23162 | -3/Testing | Lost 3 parts (2p1u) 23165 | -3/Testing | Warped through subspace 23211 | -3/Testing | Found Prototype Energy Gun 23232 | -3/Testing | Found Quantum Capacitor 23410 | -3/Testing | Identified Tachyon Dispersion Ray 23559 | -3/Testing | Identified exit to Research 23559 | -3/Testing | Discovered exit to Research (range 10) 23567 | -3/Testing | Found Prototype Ballistic Cannon 23577 | -3/Testing | Entered Research 23577 | -2/Research | Evolved 2 slots: Utility x2 23621 | -2/Research | Identified Perforator 23741 | -2/Research | Crushed by falling debris 23820 | -2/Research | Lost 6 parts (4n2w) 23833 | -2/Research | Self-destructed Last Messages --------------- 23768_ S-43 Plague destroyed. 23776_ Acquired Perforator. 23778_ Acquired 40 matter. 23779_ Penetrated by Slug. 23779_ Tachyon Dispersion Ray destroyed. 23779_ Slug penetrates Wall. 23779_ Penetrated by Slug. 23782_ Imp. Linear Gravjet destroyed. 23785_ Penetrated by Slug. 23788_ Slug penetrates Wall. 23788_ Penetrated by Slug. 23788_ Imp. Antigrav System destroyed. 23789_ Penetrated by Slug. 23789_ Imp. Linear Gravjet destroyed. 23789_ Penetrated by Slug. 23791_ Slug penetrates Wall. 23792_ S-43 Plague misfires. 23799_ Slug penetrates S-43 Plague. 23799_ U-05 Engineer destroyed. 23808_ System corrupted: Component data lost. Map ----- +----------------------------------------------------+ | ?????????????????????????????????????????????????? | | ?????????????????????????????????????????????????? | | ?????????????????????????????????????????????????? | | ?????????????????????????????????????????????????? | | ?????????????????????????????????????????????????? | | ?????????????????????????????????????????????????? | | ?????????????????????????????????????????????????? | | ?????????????????????????????????????????????????? | | ?????????????????????????????????????????????????? | | ?????????????????????????????????????????????????? | | ?????????????????????????????????????????????????? | | ?????????????????????????#######?????????????????? | | ????????????????????????? #?????????????????? | | ????????????????????????? #?????????????????? | | ?????????????????????????? #?????????????????? | | ?????????????????????????? #?????????????????? | | ??????????????????????????# #?????????????????? | | ??????????????????????????# #?????????????????? | | ??????????????????????????# #?????????????????? | | ??????????????????????????# +?????????????????? | | ??????????????????????????# #?????????????????? | | ??????????????????????????# #?????????????????? | | ????????????????########### #?????????????????? | | ????????????????# # #?????????????????? | | ????????????????# # #?????????????????? | | ????????????????# """ @# ###############???? | | ????????????????# """ + #???? | | ????????????????# """ # #???? | | ????????????????# # #???? | | ????????????????# # #???? | | ????????????????# ######### ##### #???? | | ????????????????###########????####+##### #???? | | ???????????????????????????????# # #???? | | ???????????????????????????????# + #???? | | ??????????????????#?########??## !!! # #???? | | ??????????????????#! ? # !!! # #???? | | ??????????????????# ? # !!! # #???? | | ??????????????????# """ """ # # #???? | | ??????????????????# """ """ # # #???? | | ??????????????????# """ """ # # #???? | | ??????????????????# # # #???? | | ??????????????????# ###+###### #???? | | ??????????????????# """ """ #?# ###### #???? | | ??????????????????# """ """ #?# #???? | | ??????###########?# """ """ #?# ###???? | | ??????# #?# #?# #?????? | | ??????# #?# #?# #?????? | | ??????# #?########"#####?# #######+#?????? | | ??????# ! #??????# #????# #?????????????? | | ??????# #??????# #????# #?????????????? | +----------------------------------------------------+ Best States ------------- Heat Dissipation 97 Energy Generation 59 Energy Capacity 985 Matter Stores 300 Matter Capacity 300 Sight Range 23 Robot Scan Range 20 Terrain Scan Range 24 Terrain Scan Density 1010 Jamming Range 16 Power Amplification 60 Additional Mass Support 18 EM Shielding 4 Armor Coverage 450 Resistance: KI 65 Resistance: TH 35 Resistance: EX 35 Resistance: EM 35 Resistance: I 35 Resistance: S 35 Resistance: P 35 Utility Shielding 33 Weapon Shielding 90 Melee Speed Boost 50 Evasion (%) 69 Targeting Accuracy 12 Melee Accuracy 14 Target Analysis 8 Core Analysis 15 Armor Integrity Analysis 66 Recoil Reduction 4 Kinecelleration 40 Overload Regulation 60 Salvage Targeting 2 Offensive Hacking 34 Defensive Hacking 16 Item Schematics ----------------- Imp. Heavy Machine Gun | -7/Factory | Scanalyzed Combat Drone Bay | -6/Data Miner | Free Lgt. Regenerative Plating | -6/Data Miner | Free Exp. Cesium-ion Thruster | -6/Data Miner | Free Triangulator | -6/Data Miner | Free Tactical Coordination Suite | -6/Data Miner | Free Mni. Smartbomb Launcher | -6/Data Miner | Free Assault Drone Bay | -5/Zhirov | Free Exp. Heat Sink | -5/Zhirov | Free Exp. Optical Array | -5/Zhirov | Free Imp. Arc Thrower | -5/Zhirov | Free Imp. Gyrokinetic Inverter | -4/Extension | Hacked Robot Schematics ------------------ S-27 Virus | -6/Data Miner | Free G-50 Soldier | -6/Data Miner | Free G-67 Veteran | -6/Data Miner | Free L-41 Fighter | -6/Data Miner | Free X-72 Disruptor | -6/Data Miner | Free P-70 Sage | -6/Data Miner | Free I-36 Angel | -6/Data Miner | Free I-47 Archangel | -6/Data Miner | Free Fabricated ------------ Lgt. Regenerative Plating | x1 | -5/Factory Exp. Cesium-ion Thruster | x1 | -5/Factory Exp. Optical Array | x1 | -4/Factory Alien Tech Used ----------------- Integrated Dissipator Transdimensional Reconstructor Achievements -------------- None Challenges ------------ None Game ------ Seed MakeshiftGrenadeMembrane Manual? 0 Play Time 02:33:46 Cumulative 110.7 hours Start 2021.08.17 @ 18:51:13 End 2021.08.18 @ 16:42:29 Sessions 5 Manual Loads 0 Difficulty Explorer Special Mode None Game No. 180 Rogue 163 Adventurer 4 Explorer 13 Win Type - Total 8 Types 6/0/0/2/0/0/0/0/0 Lore% 64 Gallery% 83 Achievement% 67 Wizard Run 0 Options --------- ASCII 0 Keyboard 1 Movement Numpad Keybinds 0 Fullscreen 1 Font 18/SmallcapsGlow Map View 76x50 Tactical HUD 1 Map Filters NONE Filters NONE Steam 1 RUN: 7e3d83d3-1c77-4004-b28e-33c6c737b893